[Event "AUT-ch 2018"]
[Site "Vienna"]
[Date "2018.07.26"]
[Round "6"]
[White "Ager, Josef"]
[Black "Sandhoefner, Florian"]
[Result "1/2-1/2"]
[ECO "A05"]
[WhiteElo "2154"]
[BlackElo "2327"]
[Annotator "NA"]
[PlyCount "60"]
[EventDate "2018.07.22"]
[EventType "swiss"]
[EventCountry "AUT"]
[SourceTitle "playchess.com"]
[Source "ChessBase"]
[SourceQuality "1"]
[TimeControl "40/5400+30:1800+30"]

1. Nf3 {[%emt 0:00:00]} Nf6 {[%emt 0:00:01]} 2. g3 {[%emt 0:00:00]} b5 {[%emt 0:00:01]} 3. Bg2 {[%emt 0:00:05]} Bb7 {[%emt 0:00:01]} 4. b3 {[%emt 0:00:47]} e6 {[%emt 0:00:42]} 5. Bb2 {[%emt 0:00:09]} c5 {[%emt 0:00:27]} 6. c4 {[%emt 0:00:37]} a6 {[%emt 0:01:26]} 7. O-O {[%emt 0:00:17]} Be7 {[%emt 0:00:04]} 8. Qc2 {[%emt 0:02:19]} Nc6 {[%emt 0:01:35]} 9. Nc3 {[%emt 0:04:19]} b4 {[%emt 0:02:33]} 10. Na4 {[%emt 0:01:01]} O-O {[%emt 0:01:41]} 11. d4 {[%emt 0:01:00]} cxd4 {[%emt 0:00:51]} 12. Nxd4 {[%emt 0:00:08]} Nxd4 {[%emt 0:00:29]} 13. Bxd4 {[%emt 0:00:06]} Bxg2 {[%emt 0:00:06]} 14. Kxg2 {[%emt 0:00:14]} d5 {[%emt 0:01:09]} 15. Rfd1 {[%emt 0:02:33]} Qc7 {[%emt 0:02:16]} 16. Rac1 {[%emt 0:00:49]} dxc4 {[%emt 0:03:29]} 17. Qxc4 {[%emt 0:00:17]} Qb7+ {[%emt 0:00:52]} 18. Qc6 {[%emt 0:00:28]} Qxc6+ {[%emt 0:00:32]} 19. Rxc6 {[%emt 0:00:12]} Rfd8 {[%emt 0:00:50]} 20. Rcc1 {[%emt 0:06:10]} h6 {[%emt 0:02:59]} 21. Nb6 {[%emt 0:03:47]} Rab8 {[%emt 0:01:25]} 22. Nc4 {[%emt 0:02:50]} Rbc8 {[%emt 0:05:06]} 23. f3 {[%emt 0:07:57]} Kf8 {[%emt 0:06:02]} 24. e4 {[%emt 0:00:30]} Ke8 {[%emt 0:02:55]} 25. Kf1 {[%emt 0:01:10]} Rc7 {[%emt 0:07:07]} 26. Ke2 {[%emt 0:02:08]} Rcd7 {[%emt 0:00:43]} 27. Bb2 {[%emt 0:01:42]} Rxd1 {[%emt 0:00:33]} 28. Rxd1 {[%emt 0:00:01]} Rxd1 {[%emt 0:00:09]} 29. Kxd1 {[%emt 0:00:10]} g6 {[%emt 0:00:20]} 30. Ke2 {[%emt 0:00:49]} Nd7 1/2-1/2

[Event "AUT-ch 2018"]
[Site "Vienna"]
[Date "2018.07.26"]
[Round "6"]
[White "Ebner, Johann"]
[Black "Hofegger, Jakob"]
[Result "1/2-1/2"]
[ECO "E73"]
[WhiteElo "2147"]
[BlackElo "2147"]
[Annotator "NA"]
[PlyCount "84"]
[EventDate "2018.07.22"]
[EventType "swiss"]
[EventCountry "AUT"]
[SourceTitle "playchess.com"]
[Source "ChessBase"]
[SourceQuality "1"]
[TimeControl "40/5400+30:1800+30"]

1. d4 {[%emt 0:00:00]} Nf6 {[%emt 0:00:30]} 2. c4 {[%emt 0:00:30]} g6 {[%emt 0:00:30]} 3. Nc3 {[%emt 0:00:30]} Bg7 {[%emt 0:00:30]} 4. e4 {[%emt 0:00:30]} d6 {[%emt 0:00:30]} 5. Be2 {[%emt 0:00:50]} O-O {[%emt 0:00:05]} 6. Bg5 {[%emt 0:00:05]} h6 {[%emt 0:00:04]} 7. Be3 {[%emt 0:00:07]} c5 {[%emt 0:00:04]} 8. d5 {[%emt 0:00:09]} e6 {[%emt 0:00:12]} 9. h3 {[%emt 0:00:24]} exd5 {[%emt 0:00:31]} 10. exd5 {[%emt 0:03:09]} Re8 {[%emt 0:04:05]} 11. Nf3 {[%emt 0:02:16]} Bf5 {[%emt 0:00:36]} 12. Bd3 {[%emt 0:07:58]} Ne4 {[%emt 0:02:20]} 13. Nxe4 {[%emt 0:01:38]} Bxe4 {[%emt 0:00:04]} 14. Bxe4 {[%emt 0:08:27]} Rxe4 {[%emt 0:00:13]} 15. Qc2 {[%emt 0:02:52]} Re7 {[%emt 0:02:08]} 16. O-O {[%emt 0:00:34]} Nd7 {[%emt 0:01:26]} 17. Rfe1 {[%emt 0:01:27]} Qc7 {[%emt 0:04:21]} 18. Bd2 {[%emt 0:03:03]} Rae8 {[%emt 0:00:51]} 19. Rxe7 {[%emt 0:00:44]} Rxe7 {[%emt 0:00:04]} 20. Re1 {[%emt 0:00:43]} Nf6 {[%emt 0:00:52]} 21. Bc3 {[%emt 0:07:21]} a6 {[%emt 0:03:07]} 22. a4 {[%emt 0:08:40]} Rxe1+ {[%emt 0:04:43]} 23. Nxe1 {[%emt 0:01:30]} Qd7 {[%emt 0:01:01]} 24. b3 {[%emt 0:00:51]} Qe7 {[%emt 0:05:09]} 25. Nf3 {[%emt 0:06:50]} Qe4 {[%emt 0:07:08]} 26. Qxe4 {[%emt 0:04:18]} Nxe4 {[%emt 0:00:04]} 27. Bxg7 {[%emt 0:05:55]} Kxg7 {[%emt 0:00:05]} 28. Kf1 {[%emt 0:00:23]} f5 {[%emt 0:01:17]} 29. Ke2 {[%emt 0:00:32]} Kf6 {[%emt 0:00:32]} 30. Ke3 {[%emt 0:01:09]} b6 {[%emt 0:04:56]} 31. Ne1 {[%emt 0:07:53]} Ng5 {[%emt 0:10:36]} 32. f4 {[%emt 0:01:20]} Ne4 {[%emt 0:02:24]} 33. Nf3 {[%emt 0:05:25]} Ng3 {[%emt 0:01:57]} 34. h4 {[%emt 0:04:44]} Nh5 {[%emt 0:04:39]} 35. Nd2 {[%emt 0:05:09]} g5 {[%emt 0:04:02]} 36. fxg5+ {[%emt 0:01:20]} hxg5 {[%emt 0:00:38]} 37. g4 {[%emt 0:06:17]} Ng3 {[%emt 0:12:46]} 38. hxg5+ {[%emt 0:00:52]} Kxg5 {[%emt 0:00:11]} 39. gxf5 {[%emt 0:02:27]} Nxf5+ {[%emt 0:01:41]} 40. Kd3 {[%emt 0:00:01]} Kf4 {[%emt 0:31:02]} 41. Ne4 {[%emt 0:30:30]} Ke5 {[%emt 0:03:50]} 42. Ng5 {[%emt 0:00:43]} a5 {[%emt 0:00:00] Ke4+} 1/2-1/2

[Event "AUT-ch 2018"]
[Site "Vienna"]
[Date "2018.07.26"]
[Round "6"]
[White "Trippold, Denise"]
[Black "Hatzl, Johannes"]
[Result "0-1"]
[ECO "E06"]
[WhiteElo "2138"]
[BlackElo "2068"]
[Annotator "NA"]
[PlyCount "126"]
[EventDate "2018.07.22"]
[EventType "swiss"]
[EventCountry "AUT"]
[SourceTitle "playchess.com"]
[Source "ChessBase"]
[SourceQuality "1"]
[TimeControl "40/5400+30:1800+30"]

1. d4 {[%emt 0:00:00]} Nf6 {[%emt 0:00:19]} 2. c4 {[%emt 0:00:00]} e6 {[%emt 0:00:17]} 3. g3 {[%emt 0:00:26]} d5 {[%emt 0:00:38]} 4. Bg2 {[%emt 0:00:07]} Be7 {[%emt 0:00:34]} 5. Nf3 {[%emt 0:00:07]} O-O {[%emt 0:00:54]} 6. O-O {[%emt 0:01:12]} dxc4 {[%emt 0:00:52]} 7. Qc2 {[%emt 0:00:38]} a6 {[%emt 0:00:52]} 8. a4 {[%emt 0:00:44]} Bd7 {[%emt 0:01:38]} 9. Qxc4 {[%emt 0:08:17]} Bc6 {[%emt 0:00:59]} 10. Nc3 {[%emt 0:07:53]} b5 {[%emt 0:03:33]} 11. Qd3 {[%emt 0:01:33]} b4 {[%emt 0:01:06]} 12. Nb1 {[%emt 0:00:11]} Be4 {[%emt 0:04:09]} 13. Qd1 {[%emt 0:14:30]} c5 {[%emt 0:07:19]} 14. Nbd2 {[%emt 0:00:11]} Bb7 {[%emt 0:02:12]} 15. dxc5 {[%emt 0:05:59]} Nbd7 {[%emt 0:06:34]} 16. Nd4 {[%emt 0:08:16]} Bxg2 {[%emt 0:01:02]} 17. Kxg2 {[%emt 0:00:06]} Nxc5 {[%emt 0:00:35]} 18. N2b3 {[%emt 0:09:46]} Qd5+ {[%emt 0:06:13]} 19. f3 {[%emt 0:10:42]} Rfd8 {[%emt 0:08:00]} 20. Be3 {[%emt 0:00:48]} Qe5 {[%emt 0:15:04]} 21. Bf4 {[%emt 0:12:24]} Qh5 {[%emt 0:00:24]} 22. g4 {[%emt 0:03:16]} Nxg4 {[%emt 0:02:59]} 23. fxg4 {[%emt 0:00:10]} Qxg4+ {[%emt 0:00:09]} 24. Bg3 {[%emt 0:08:55]} Qe4+ {[%emt 0:03:53]} 25. Rf3 {[%emt 0:02:13]} Nxb3 {[%emt 0:00:45]} 26. Qxb3 {[%emt 0:00:33]} Rxd4 {[%emt 0:01:19]} 27. Raf1 {[%emt 0:00:54]} Qxe2+ {[%emt 0:02:46]} 28. R1f2 {[%emt 0:00:11]} Qe4 {[%emt 0:00:16]} 29. Kg1 {[%emt 0:00:17]} Rad8 {[%emt 0:02:53]} 30. Rf1 {[%emt 0:04:10]} Rd2 {[%emt 0:03:42]} 31. Be1 {[%emt 0:00:22]} Bc5+ {[%emt 0:01:32]} 32. Bf2 {[%emt 0:00:27]} Bxf2+ {[%emt 0:00:23]} 33. R3xf2 {[%emt 0:00:16]} Rxf2 {[%emt 0:00:54]} 34. Rxf2 {[%emt 0:00:16]} Qg4+ {[%emt 0:00:17]} 35. Qg3 {[%emt 0:00:36]} Qxg3+ {[%emt 0:02:33]} 36. hxg3 {[%emt 0:00:01]} g5 {[%emt 0:00:14]} 37. Rc2 {[%emt 0:00:22]} a5 {[%emt 0:00:22]} 38. Rc5 {[%emt 0:00:48]} Rd5 {[%emt 0:00:04]} 39. Rb5 {[%emt 0:00:35]} Kg7 {[%emt 0:00:26]} 40. Kf2 {[%emt 0:00:03]} Rd2+ {[%emt 0:30:28]} 41. Ke3 {[%emt 0:30:07]} Rxb2 {[%emt 0:00:04]} 42. Rxg5+ {[%emt 0:00:11]} Kf6 {[%emt 0:00:12]} 43. Rxa5 {[%emt 0:00:04]} Ra2 {[%emt 0:00:22]} 44. Kd3 {[%emt 0:00:23]} Ra3+ {[%emt 0:02:30]} 45. Kc4 {[%emt 0:00:27]} Rxg3 {[%emt 0:00:02]} 46. Kxb4 {[%emt 0:00:13]} Rg4+ {[%emt 0:00:09]} 47. Kb3 {[%emt 0:00:26]} e5 {[%emt 0:04:09]} 48. Rb5 {[%emt 0:02:44]} h5 {[%emt 0:05:17]} 49. a5 {[%emt 0:00:38]} Rg8 {[%emt 0:00:30]} 50. a6 {[%emt 0:00:00]} Ra8 {[%emt 0:00:00]} 51. Ra5 {[%emt 0:00:00]} Kf5 {[%emt 0:00:00]} 52. Ra4 {[%emt 0:00:00]} e4 {[%emt 0:00:00]} 53. Kc3 {[%emt 0:00:00]} Kf4 {[%emt 0:00:00]} 54. Kd2 {[%emt 0:00:00]} h4 {[%emt 0:00:00]} 55. Ra3 {[%emt 0:00:00]} h3 {[%emt 0:00:00]} 56. Rxh3 {[%emt 0:00:00]} Rxa6 {[%emt 0:00:00]} 57. Ke1 {[%emt 0:00:00]} Ra1+ {[%emt 0:00:00]} 58. Kf2 {[%emt 0:00:00]} Ra2+ {[%emt 0:00:00]} 59. Ke1 {[%emt 0:00:00]} f5 {[%emt 0:00:00]} 60. Rb3 {[%emt 0:00:00]} e3 {[%emt 0:00:00]} 61. Rb5 {[%emt 0:00:00]} Ke4 {[%emt 0:00:00]} 62. Rb4+ {[%emt 0:00:00]} Kf3 {[%emt 0:00:00]} 63. Rb1 {[%emt 0:00:00]} Rh2 {[%emt 0:00:00]} 0-1

[Event "AUT-ch 2018"]
[Site "Vienna"]
[Date "2018.07.26"]
[Round "6"]
[White "Hapala, Elisabeth"]
[Black "Ehs, Dominik"]
[Result "1-0"]
[ECO "C42"]
[WhiteElo "2131"]
[BlackElo "2097"]
[Annotator "NA"]
[PlyCount "81"]
[EventDate "2018.07.22"]
[EventType "swiss"]
[EventCountry "AUT"]
[SourceTitle "playchess.com"]
[Source "ChessBase"]
[SourceQuality "1"]
[TimeControl "40/5400+30:1800+30"]

1. e4 {[%emt 0:00:00]} e5 {[%emt 0:00:07]} 2. Nf3 {[%emt 0:00:00]} Nf6 {[%emt 0:00:06]} 3. Nxe5 {[%emt 0:00:00]} d6 {[%emt 0:00:06]} 4. Nf3 {[%emt 0:00:00]} Nxe4 {[%emt 0:00:05]} 5. Nc3 {[%emt 0:10:48]} Nxc3 {[%emt 0:00:41]} 6. dxc3 {[%emt 0:00:05]} Be7 {[%emt 0:00:07]} 7. Be3 {[%emt 0:00:26]} Nc6 {[%emt 0:00:16]} 8. Qd2 {[%emt 0:00:47]} Be6 {[%emt 0:00:29]} 9. O-O-O {[%emt 0:03:03]} a5 {[%emt 0:00:06]} 10. Kb1 {[%emt 0:00:44]} a4 {[%emt 0:00:07]} 11. Nd4 {[%emt 0:11:41]} Nxd4 {[%emt 0:07:17]} 12. Bxd4 {[%emt 0:00:37]} O-O {[%emt 0:03:34]} 13. c4 {[%emt 0:04:43]} Bf6 {[%emt 0:04:41]} 14. Qc3 {[%emt 0:01:29]} Bxd4 {[%emt 0:00:41]} 15. Qxd4 {[%emt 0:00:49]} a3 {[%emt 0:07:46]} 16. b3 {[%emt 0:00:12]} Qg5 {[%emt 0:14:01]} 17. Bd3 {[%emt 0:08:53]} Qe5 {[%emt 0:08:55]} 18. Qxe5 {[%emt 0:05:03]} dxe5 {[%emt 0:00:08]} 19. Rde1 {[%emt 0:00:04]} Ra5 {[%emt 0:05:44]} 20. b4 {[%emt 0:04:23]} Ra4 {[%emt 0:01:17]} 21. c3 {[%emt 0:00:06]} Rd8 {[%emt 0:08:05]} 22. Kc2 {[%emt 0:09:17]} b5 {[%emt 0:01:52]} 23. Rxe5 {[%emt 0:07:30]} bxc4 {[%emt 0:03:14]} 24. Be2 {[%emt 0:00:14]} Ra6 {[%emt 0:03:58]} 25. Rc5 {[%emt 0:03:45]} Rad6 {[%emt 0:02:12]} 26. Rd1 {[%emt 0:00:15]} Rxd1 {[%emt 0:00:25]} 27. Bxd1 {[%emt 0:00:04]} g6 {[%emt 0:01:36]} 28. Rxc7 {[%emt 0:02:11]} Bf5+ {[%emt 0:01:28]} 29. Kc1 {[%emt 0:00:05]} Rd3 {[%emt 0:06:32]} 30. Rxc4 {[%emt 0:04:10]} Be6 {[%emt 0:00:05]} 31. Rc7 {[%emt 0:00:24]} Bxa2 {[%emt 0:00:09]} 32. Bc2 {[%emt 0:01:36]} Rd6 {[%emt 0:01:07]} 33. Ra7 {[%emt 0:00:32]} Bc4 {[%emt 0:00:26]} 34. Rxa3 {[%emt 0:00:29]} Re6 {[%emt 0:00:55]} 35. Bb3 {[%emt 0:02:40]} Re1+ {[%emt 0:01:21]} 36. Kd2 {[%emt 0:00:01]} Re2+ {[%emt 0:00:07]} 37. Kd1 {[%emt 0:00:02]} Bd3 {[%emt 0:00:07]} 38. Ra2 {[%emt 0:00:41]} Re5 {[%emt 0:01:05]} 39. Rd2 {[%emt 0:01:35]} Bf1 {[%emt 0:00:10]} 40. Bd5 {[%emt 0:01:47]} Kf8 {[%emt 0:30:50]} 41. c4 {[%emt 0:30:18]} 1-0

[Event "AUT-ch 2018"]
[Site "Vienna"]
[Date "2018.07.26"]
[Round "6"]
[White "Froewis, Annika"]
[Black "Högl, Emanuel"]
[Result "1-0"]
[ECO "B11"]
[WhiteElo "2128"]
[BlackElo "2128"]
[Annotator "NA"]
[PlyCount "51"]
[EventDate "2018.07.22"]
[EventType "swiss"]
[EventCountry "AUT"]
[SourceTitle "playchess.com"]
[Source "ChessBase"]
[SourceQuality "1"]
[TimeControl "40/5400+30:1800+30"]

1. e4 {[%emt 0:00:00]} c6 {[%emt 0:00:04]} 2. Nf3 {[%emt 0:00:00]} d5 {[%emt 0:00:04]} 3. Nc3 {[%emt 0:00:00]} Bg4 {[%emt 0:01:11]} 4. h3 {[%emt 0:01:35]} Bxf3 {[%emt 0:02:20]} 5. Qxf3 {[%emt 0:00:42]} dxe4 {[%emt 0:00:47]} 6. Nxe4 {[%emt 0:01:19]} e6 {[%emt 0:00:54]} 7. c3 {[%emt 0:03:40]} Nd7 {[%emt 0:04:49]} 8. d4 {[%emt 0:01:07]} Ngf6 {[%emt 0:00:52]} 9. Ng3 {[%emt 0:08:05]} Bd6 {[%emt 0:18:07]} 10. Bd3 {[%emt 0:01:26]} Qc7 {[%emt 0:06:15]} 11. O-O {[%emt 0:04:17]} O-O-O {[%emt 0:05:36]} 12. b4 {[%emt 0:11:18]} Rdg8 {[%emt 0:01:58]} 13. Bg5 {[%emt 0:14:51]} h6 {[%emt 0:02:01]} 14. Bxf6 {[%emt 0:02:01]} Nxf6 {[%emt 0:00:29]} 15. b5 {[%emt 0:04:28]} c5 {[%emt 0:03:09]} 16. a4 {[%emt 0:02:25]} Bxg3 {[%emt 0:46:11]} 17. fxg3 {[%emt 0:00:06]} cxd4 {[%emt 0:00:48]} 18. cxd4 {[%emt 0:00:59]} Kb8 {[%emt 0:00:05]} 19. a5 {[%emt 0:01:22]} Rc8 {[%emt 0:03:20]} 20. b6 {[%emt 0:11:12]} axb6 {[%emt 0:00:10]} 21. a6 {[%emt 0:00:08]} bxa6 {[%emt 0:01:12]} 22. Bxa6 {[%emt 0:00:34]} Rcd8 {[%emt 0:00:30]} 23. Rfc1 {[%emt 0:03:04]} Qd7 {[%emt 0:00:30]} 24. Qf4+ {[%emt 0:00:11]} Qd6 {[%emt 0:00:30]} 25. Rc8+ {[%emt 0:00:14]} Ka7 {[%emt 0:00:03]} 26. Qxd6 {[%emt 0:02:15]} 1-0

[Event "AUT-ch 2018"]
[Site "Vienna"]
[Date "2018.07.26"]
[Round "6"]
[White "Toelly, Michael"]
[Black "Ly, Dominik"]
[Result "0-1"]
[ECO "A30"]
[WhiteElo "2127"]
[BlackElo "2217"]
[Annotator "NA"]
[PlyCount "68"]
[EventDate "2018.07.22"]
[EventType "swiss"]
[EventCountry "AUT"]
[SourceTitle "playchess.com"]
[Source "ChessBase"]
[SourceQuality "1"]
[TimeControl "40/5400+30:1800+30"]

1. c4 {[%emt 0:00:00]} c5 {[%emt 0:00:41]} 2. g3 {[%emt 0:00:00]} g6 {[%emt 0:00:11]} 3. Bg2 {[%emt 0:00:00]} Bg7 {[%emt 0:00:04]} 4. e3 {[%emt 0:00:00]} Nc6 {[%emt 0:00:35]} 5. Nc3 {[%emt 0:00:00]} d6 {[%emt 0:01:13]} 6. Nge2 {[%emt 0:00:02]} Nh6 {[%emt 0:01:53]} 7. d4 {[%emt 0:00:49]} cxd4 {[%emt 0:00:33]} 8. exd4 {[%emt 0:00:07]} Nf5 {[%emt 0:00:10]} 9. Be3 {[%emt 0:01:18]} O-O {[%emt 0:02:00]} 10. O-O {[%emt 0:01:36]} Qb6 {[%emt 0:08:23]} 11. Na4 {[%emt 0:17:21]} Qa6 {[%emt 0:01:01]} 12. b3 {[%emt 0:06:53]} Bd7 {[%emt 0:07:47]} 13. Rc1 {[%emt 0:04:38]} Rac8 {[%emt 0:01:59]} 14. Qd2 {[%emt 0:01:57]} Nxe3 {[%emt 0:09:00]} 15. fxe3 {[%emt 0:00:33]} b5 {[%emt 0:00:57]} 16. cxb5 {[%emt 0:06:28]} Qxb5 {[%emt 0:00:17]} 17. Nac3 {[%emt 0:03:16]} Qa5 {[%emt 0:00:48]} 18. Ne4 {[%emt 0:04:00]} Qxd2 {[%emt 0:02:36]} 19. Nxd2 {[%emt 0:00:07]} Nb4 {[%emt 0:00:42]} 20. Nc3 {[%emt 0:09:13]} Bh6 {[%emt 0:02:41]} 21. Nc4 {[%emt 0:01:43]} Rxc4 {[%emt 0:00:28]} 22. bxc4 {[%emt 0:00:21]} Bxe3+ {[%emt 0:00:06]} 23. Kh1 {[%emt 0:00:06]} Bxc1 {[%emt 0:00:09]} 24. Rxc1 {[%emt 0:00:01]} Rc8 {[%emt 0:00:27]} 25. Bf1 {[%emt 0:01:40]} Bf5 {[%emt 0:02:10]} 26. Kg1 {[%emt 0:03:00]} Kf8 {[%emt 0:02:21]} 27. a3 {[%emt 0:07:42]} Nd3 {[%emt 0:00:23]} 28. Rb1 {[%emt 0:00:46]} Rxc4 {[%emt 0:00:37]} 29. Nd5 {[%emt 0:00:36]} Rc1 {[%emt 0:01:33]} 30. Rb8+ {[%emt 0:02:52]} Kg7 {[%emt 0:00:26]} 31. Ne3 {[%emt 0:02:44]} Be4 {[%emt 0:03:48]} 32. Re8 {[%emt 0:00:15]} Kf6 {[%emt 0:02:27]} 33. d5 {[%emt 0:02:27]} h5 {[%emt 0:02:51]} 34. Ra8 {[%emt 0:00:17]} Rc7 {[%emt 0:03:04]} 0-1

[Event "AUT-ch 2018"]
[Site "Vienna"]
[Date "2018.07.26"]
[Round "6"]
[White "Hupfer, Robert"]
[Black "Peyrer, Konstantin"]
[Result "1/2-1/2"]
[ECO "A65"]
[WhiteElo "2122"]
[BlackElo "2209"]
[Annotator "NA"]
[PlyCount "97"]
[EventDate "2018.07.22"]
[EventType "swiss"]
[EventCountry "AUT"]
[SourceTitle "playchess.com"]
[Source "ChessBase"]
[SourceQuality "1"]
[TimeControl "40/5400+30:1800+30"]

1. d4 {[%emt 0:00:00]} Nf6 {[%emt 0:00:13]} 2. c4 {[%emt 0:00:00]} c5 {[%emt 0:00:05]} 3. d5 {[%emt 0:00:00]} e6 {[%emt 0:00:05]} 4. Nc3 {[%emt 0:00:09]} exd5 {[%emt 0:00:04]} 5. cxd5 {[%emt 0:00:36]} d6 {[%emt 0:00:04]} 6. e4 {[%emt 0:00:51]} g6 {[%emt 0:00:04]} 7. Bd3 {[%emt 0:05:09]} Bg7 {[%emt 0:00:50]} 8. Nge2 {[%emt 0:00:04]} O-O {[%emt 0:00:20]} 9. O-O {[%emt 0:00:15]} Re8 {[%emt 0:02:08]} 10. Ng3 {[%emt 0:03:07]} a6 {[%emt 0:00:55]} 11. a4 {[%emt 0:00:24]} Qc7 {[%emt 0:01:02]} 12. Re1 {[%emt 0:05:02]} Nbd7 {[%emt 0:04:00]} 13. h3 {[%emt 0:02:14]} h5 {[%emt 0:03:22]} 14. a5 {[%emt 0:04:34]} h4 {[%emt 0:04:04]} 15. Nf1 {[%emt 0:02:02]} Nh7 {[%emt 0:03:27]} 16. Ne3 {[%emt 0:06:05]} Ne5 {[%emt 0:04:39]} 17. Be2 {[%emt 0:08:44]} f5 {[%emt 0:04:20]} 18. exf5 {[%emt 0:09:19]} Bxf5 {[%emt 0:01:09]} 19. f4 {[%emt 0:07:23]} Nf7 {[%emt 0:01:10]} 20. Nxf5 {[%emt 0:00:53]} gxf5 {[%emt 0:00:05]} 21. Bd3 {[%emt 0:05:16]} Nh6 {[%emt 0:02:28]} 22. Be3 {[%emt 0:05:50]} Rxe3 {[%emt 0:06:12]} 23. Rxe3 {[%emt 0:00:13]} Bd4 {[%emt 0:00:41]} 24. Qf3 {[%emt 0:04:15]} c4 {[%emt 0:02:42]} 25. Bf1 {[%emt 0:02:22]} Qc5 {[%emt 0:00:41]} 26. Rae1 {[%emt 0:00:18]} Re8 {[%emt 0:01:32]} 27. Nd1 {[%emt 0:01:16]} Qxa5 {[%emt 0:05:33]} 28. Kh2 {[%emt 0:00:49]} Bxe3 {[%emt 0:00:29]} 29. Rxe3 {[%emt 0:00:13]} Rxe3 {[%emt 0:01:03]} 30. Qxe3 {[%emt 0:03:36]} Qxd5 {[%emt 0:02:32]} 31. Qe8+ {[%emt 0:04:15]} Kg7 {[%emt 0:00:09]} 32. Ne3 {[%emt 0:01:39]} Qe4 {[%emt 0:06:33]} 33. Qd7+ {[%emt 0:09:56]} Kh8 {[%emt 0:02:13]} 34. Qc8+ {[%emt 0:01:01]} Ng8 {[%emt 0:02:37]} 35. Bxc4 {[%emt 0:00:53]} Qxf4+ {[%emt 0:00:08]} 36. Kh1 {[%emt 0:00:09]} Nhf6 {[%emt 0:00:07]} 37. Nxf5 {[%emt 0:03:57]} Qc1+ {[%emt 0:01:28]} 38. Kh2 {[%emt 0:00:06]} d5 {[%emt 0:03:06]} 39. Qc7 {[%emt 0:03:47]} Qg5 {[%emt 0:01:17]} 40. Bd3 {[%emt 0:02:05]} Ne4 {[%emt 0:31:57]} 41. Bxe4 {[%emt 0:11:25]} dxe4 {[%emt 0:00:00]} 42. Qe5+ {[%emt 0:00:16]} Nf6 {[%emt 0:00:00]} 43. Qb8+ {[%emt 0:00:20]} Kh7 {[%emt 0:00:00]} 44. Qxb7+ {[%emt 0:02:14]} Kg6 {[%emt 0:00:00]} 45. Ne7+ {[%emt 0:06:09]} Kh6 {[%emt 0:00:00]} 46. Qb8 {[%emt 0:02:10]} e3 {[%emt 0:00:00]} 47. Qf8+ {[%emt 0:05:14]} Kh7 {[%emt 0:00:00]} 48. Qf7+ {[%emt 0:01:09]} Kh6 {[%emt 0:00:00]} 49. Qf8+ {[%emt 0:01:00]} 1/2-1/2

[Event "AUT-ch 2018"]
[Site "Vienna"]
[Date "2018.07.26"]
[Round "6"]
[White "Zojer, Stefan"]
[Black "Holzleithner, Johannes"]
[Result "1-0"]
[ECO "A45"]
[WhiteElo "2108"]
[BlackElo "2108"]
[Annotator "NA"]
[PlyCount "147"]
[EventDate "2018.07.22"]
[EventType "swiss"]
[EventCountry "AUT"]
[SourceTitle "playchess.com"]
[Source "ChessBase"]
[SourceQuality "1"]
[TimeControl "40/5400+30:1800+30"]

1. d4 {[%emt 0:00:00]} Nf6 {[%emt 0:00:02]} 2. Bg5 {[%emt 0:00:00]} d5 {[%emt 0:00:01]} 3. Bxf6 {[%emt 0:00:29]} exf6 {[%emt 0:00:02]} 4. e3 {[%emt 0:01:03]} Bd6 {[%emt 0:04:18]} 5. c4 {[%emt 0:02:47]} dxc4 {[%emt 0:02:13]} 6. Nd2 {[%emt 0:06:19]} O-O {[%emt 0:01:55]} 7. Bxc4 {[%emt 0:02:58]} Nd7 {[%emt 0:03:38]} 8. Ngf3 {[%emt 0:03:33]} Nb6 {[%emt 0:01:41]} 9. Bd3 {[%emt 0:02:21]} Re8 {[%emt 0:06:20]} 10. O-O {[%emt 0:01:52]} f5 {[%emt 0:06:55]} 11. Qc2 {[%emt 0:03:20]} g6 {[%emt 0:06:43]} 12. g3 {[%emt 0:04:12]} Nd5 {[%emt 0:08:11]} 13. a3 {[%emt 0:01:07]} Nf6 {[%emt 0:01:03]} 14. Nc4 {[%emt 0:08:53]} Be6 {[%emt 0:07:04]} 15. Nce5 {[%emt 0:05:43]} Bd5 {[%emt 0:00:35]} 16. Bc4 {[%emt 0:03:57]} c6 {[%emt 0:07:19]} 17. Qb3 {[%emt 0:06:55]} Qb6 {[%emt 0:04:12]} 18. Qc2 {[%emt 0:07:12]} Re7 {[%emt 0:01:53]} 19. b4 {[%emt 0:06:44]} Rae8 {[%emt 0:03:41]} 20. Rfc1 {[%emt 0:02:26]} Be4 {[%emt 0:02:03]} 21. Qb3 {[%emt 0:02:33]} Bd5 {[%emt 0:02:07]} 22. b5 {[%emt 0:05:35]} Bxe5 {[%emt 0:03:04]} 23. Nxe5 {[%emt 0:00:16]} Rxe5 {[%emt 0:04:32]} 24. dxe5 {[%emt 0:00:21]} Rxe5 {[%emt 0:00:01]} 25. bxc6 {[%emt 0:04:00]} Qxc6 {[%emt 0:04:28]} 26. Bxd5 {[%emt 0:03:42]} Qxd5 {[%emt 0:00:43]} 27. Rc8+ {[%emt 0:03:09]} Kg7 {[%emt 0:00:15]} 28. Qb4 {[%emt 0:00:43]} Nd7 {[%emt 0:02:01]} 29. Rc7 {[%emt 0:02:15]} Nc5 {[%emt 0:01:15]} 30. Qd4 {[%emt 0:03:32]} Nb3 {[%emt 0:02:51]} 31. Qxd5 {[%emt 0:00:54]} Rxd5 {[%emt 0:00:01]} 32. Rb1 {[%emt 0:00:28]} Na5 {[%emt 0:00:49]} 33. a4 {[%emt 0:00:31]} a6 {[%emt 0:01:24]} 34. Rbc1 {[%emt 0:01:00]} b5 {[%emt 0:00:02]} 35. axb5 {[%emt 0:01:20]} axb5 {[%emt 0:00:21]} 36. R7c5 {[%emt 0:01:06]} Rxc5 {[%emt 0:01:11]} 37. Rxc5 {[%emt 0:00:02]} Nb7 {[%emt 0:00:12]} 38. Rxb5 {[%emt 0:00:17]} Nd6 {[%emt 0:00:02]} 39. Rd5 {[%emt 0:00:28]} Ne4 {[%emt 0:00:22]} 40. f3 {[%emt 0:00:21]} Ng5 {[%emt 0:30:29]} 41. Kg2 {[%emt 0:31:32]} h6 {[%emt 0:02:47]} 42. h4 {[%emt 0:02:03]} Ne6 {[%emt 0:00:07]} 43. h5 {[%emt 0:00:23]} Ng5 {[%emt 0:04:12]} 44. hxg6 {[%emt 0:00:00]} Kxg6 {[%emt 0:00:00]} 45. Rd6+ {[%emt 0:00:00]} f6 {[%emt 0:00:00]} 46. Rd7 {[%emt 0:00:00]} h5 {[%emt 0:00:00]} 47. Kf2 {[%emt 0:00:00]} Nh3+ {[%emt 0:00:00]} 48. Kf1 {[%emt 0:00:00]} Ng5 {[%emt 0:00:00]} 49. Ke2 {[%emt 0:00:00]} Kh6 {[%emt 0:00:00]} 50. Rd5 {[%emt 0:00:00]} Kg6 {[%emt 0:00:00]} 51. Ra5 {[%emt 0:00:00]} Nf7 {[%emt 0:00:00]} 52. Rb5 {[%emt 0:00:00]} Ng5 {[%emt 0:00:00]} 53. Rd5 {[%emt 0:00:00]} Nf7 {[%emt 0:00:00]} 54. f4 {[%emt 0:00:00]} Nh6 {[%emt 0:00:00]} 55. Kf3 {[%emt 0:00:00]} Ng4 {[%emt 0:00:00]} 56. e4 fxe4+ {[%emt 0:00:00]} 57. Kxe4 {[%emt 0:00:00]} Nf2+ {[%emt 0:00:00]} 58. Kf3 {[%emt 0:00:00]} Ng4 {[%emt 0:00:00]} 59. Ra5 {[%emt 0:00:00]} Nh2+ {[%emt 0:00:00]} 60. Kg2 {[%emt 0:00:00]} Ng4 {[%emt 0:00:00]} 61. Kh3 {[%emt 0:00:00]} Ne3 {[%emt 0:00:00]} 62. Kh4 {[%emt 0:00:00]} Ng2+ {[%emt 0:00:00]} 63. Kh3 {[%emt 0:00:00]} Ne3 {[%emt 0:00:00]} 64. Rb5 {[%emt 0:00:00]} Kh6 {[%emt 0:00:00]} 65. Rb3 {[%emt 0:00:00]} Nf5 {[%emt 0:00:00]} 66. g4 {[%emt 0:00:00]} hxg4+ {[%emt 0:00:00]} 67. Kxg4 {[%emt 0:00:00]} Kg6 {[%emt 0:00:00]} 68. Rb1 {[%emt 0:01:19]} Ne3+ {[%emt 0:03:32]} 69. Kf3 {[%emt 0:00:16]} Nd5 {[%emt 0:00:52]} 70. Rd1 {[%emt 0:01:56]} Ne7 {[%emt 0:01:45]} 71. Ke4 {[%emt 0:00:38]} Kf7 {[%emt 0:02:41]} 72. Ra1 {[%emt 0:01:48]} f5+ {[%emt 0:00:54]} 73. Ke5 {[%emt 0:00:32]} Kg6 {[%emt 0:05:25] Ke4} 74. Ke6 {[%emt 0:00:39]} 1-0